fUST/lending_fUST_20241227
["ID","MTS","AMOUNT","RATE_DAILY","PERIOD"]
[346783239,1735285843990,-500.0,0.00010208,2]
[346783241,1735285844000,-500.0,0.00010209,2]
[346783243,1735285844010,-500.0,0.00010209,2]
[346783245,1735285844019,-616.44,0.00010209,2]
[346783247,1735285844030,-500.0,0.00010209,2]
[346783249,1735285844040,-500.0,0.00010209,2]
[346783251,1735285844049,-500.0,0.00010209,2]
[346783253,1735285844059,-151.0,0.00010209,2]
[346783255,1735285844068,-500.0,0.00010209,2]
[346783257,1735285844078,-500.0,0.00010209,2]
[346783259,1735285844087,-500.0,0.00010209,2]
[346783261,1735285844097,-500.0,0.00010209,2]
[346783263,1735285844107,-500.0,0.00010209,2]
[346783265,1735285844116,-839.78,0.00010209,2]
[346783267,1735285844126,-500.0,0.00010209,2]
[346783269,1735285844135,-500.0,0.00010209,2]
[346783271,1735285844145,-1425.62,0.00010209,2]
[346783273,1735285844154,-500.0,0.00010209,2]
[346783275,1735285844164,-503.36,0.00010209,2]
[346783277,1735285844174,-18995.75,0.00010209,2]
[346783279,1735285844186,-692.24,0.00010209,2]
[346783281,1735285844195,-856.83,0.00010209,2]
[346783283,1735285844205,-500.0,0.00010209,2]
[346783285,1735285844214,-500.0,0.00010209,2]
[346783287,1735285844224,-852.98,0.00010209,2]
[346783289,1735285844233,-823.64,0.00010209,2]
[346783291,1735285844243,-500.0,0.00010209,2]
[346783293,1735285844253,-500.0,0.00010209,2]
[346783295,1735285844263,-947.06,0.00010209,2]
[346783297,1735285844272,-500.0,0.00010209,2]
[346783299,1735285844282,-1250.89,0.00010209,2]
[346783301,1735285844291,-500.0,0.00010209,2]
[346783303,1735285844301,-660.37,0.00010209,2]
[346783305,1735285844310,-500.0,0.0001021,2]
[346783307,1735285844320,-500.0,0.0001021,2]
[346783309,1735285844330,-500.0,0.0001021,2]
[346783311,1735285844339,-500.0,0.0001021,2]
[346783313,1735285844348,-500.0,0.0001021,2]
[346783315,1735285844358,-500.0,0.0001021,2]
[346783318,1735285844368,-500.0,0.0001021,2]
[346783320,1735285844378,-195.75625595,0.0001021,2]
[346783321,1735285844387,-500.0,0.0001021,2]
[346783323,1735285844397,-500.0,0.0001021,2]
[346783326,1735285844406,-500.0,0.0001021,2]
[346783328,1735285844415,-500.0,0.0001021,2]
[346783330,1735285844425,-557.73,0.0001021,2]
[346783332,1735285844436,-500.0,0.0001021,2]
[346783334,1735285844445,-560.18121163,0.0001021,2]
[346783336,1735285844454,-500.0,0.0001021,2]
[346783338,1735285844464,-528.85,0.0001021,2]
[346783340,1735285844474,-500.0,0.0001021,2]
[346783342,1735285844483,-500.0,0.0001021,2]
[346783344,1735285844492,-500.0,0.0001021,2]
[346783346,1735285844501,-500.0,0.0001021,2]
[346783348,1735285844511,-500.0,0.0001021,2]
[346783350,1735285844520,-500.0,0.0001021,2]
[346783352,1735285844529,-238.86029852,0.0001021,2]
[346783354,1735285844539,-500.0,0.0001021,2]
[346783356,1735285844548,-500.0,0.0001021,2]
[346783358,1735285844558,-151.0,0.0001021,2]
[346783360,1735285844567,-500.0,0.0001021,2]
[346783361,1735285844580,-500.0,0.0001021,2]
[346783363,1735285844589,-500.0,0.0001021,2]
[346783365,1735285844598,-500.0,0.0001021,2]
[346783367,1735285844607,-500.0,0.0001021,2]
[346783369,1735285844617,-500.0,0.0001021,2]
[346783371,1735285844626,-662.6,0.0001021,2]
[346783373,1735285844635,-500.0,0.0001021,2]
[346783375,1735285844645,-250.58699077,0.0001021,2]
[346783377,1735285844654,-500.0,0.0001021,2]
[346783379,1735285844664,-500.0,0.0001021,2]
[346783381,1735285844674,-500.0,0.0001021,2]
[346783383,1735285844684,-549.13,0.0001021,2]
[346783386,1735285844694,-500.0,0.0001021,2]
[346783387,1735285844703,-500.0,0.0001021,2]
[346783389,1735285844712,-504.11222684,0.0001021,2]
[346783391,1735285844721,-500.0,0.0001021,2]
[346783393,1735285844730,-1626.09574543,0.00010211,2]
[346783395,1735285844739,-500.0,0.00010211,2]
[346783398,1735285844749,-500.0,0.00010211,2]
[346783401,1735285844758,-505.95024527,0.00010211,2]
[346783403,1735285844768,-500.0,0.00010211,2]
[346783408,1735285844778,-500.0,0.00010211,2]
[346783411,1735285844787,-500.0,0.00010211,2]
[346783413,1735285844797,-500.0,0.00010211,2]
[346783415,1735285844806,-684.8,0.00010212,2]
[346783417,1735285844815,-1648.42,0.00010212,2]
[346783419,1735285844824,-500.0,0.00010212,2]
[346783421,1735285844834,-500.0,0.00010212,2]
[346783423,1735285844843,-500.0,0.00010212,2]
[346783425,1735285844853,-659.87,0.00010212,2]
[346783427,1735285844862,-500.0,0.00010212,2]
[346783429,1735285844871,-500.0,0.00010212,2]
[346783431,1735285844881,-500.0,0.00010212,2]
[346783433,1735285844890,-500.0,0.00010212,2]
[346783435,1735285844900,-500.0,0.00010213,2]
[346783437,1735285844908,-5080.82,0.00010213,2]
[346783438,1735285844918,-554.83,0.00010213,2]
[346783440,1735285844927,-500.0,0.00010214,2]
[346783442,1735285844938,-500.0,0.00010214,2]
[346783444,1735285844947,-6764.02,0.00010214,2]
[346783446,1735285844956,-152.559,0.0001023,2]
[346783449,1735285844966,-420.0,0.00010324,2]
[346783451,1735285844976,-420.0,0.00010324,2]
[346783453,1735285844985,-249.94,0.00010381,2]
[346783455,1735285844997,-9819.28779704,0.00010394,2]
[346783457,1735285845006,-250.0,0.00010411,2]
[346783459,1735285845016,-9819.28779704,0.00010457,2]
[346783461,1735285845026,-500.0,0.00010482,2]
[346783463,1735285845035,-500.0,0.00010482,2]
[346783465,1735285845046,-500.0,0.00010482,2]
[346783467,1735285845059,-539.33,0.00010482,2]
[346783469,1735285845068,-500.0,0.00010482,2]
[346783471,1735285845078,-500.0,0.00010482,2]
[346783473,1735285845088,-512.61,0.00010482,2]
[346783475,1735285845098,-7102.11,0.00010482,2]
[346783477,1735285845108,-2509.61,0.00010482,2]
[346783479,1735285845117,-681.74,0.00010482,2]
[346783481,1735285845127,-2694.33,0.00010482,2]
[346783483,1735285845137,-1525.4,0.00010482,2]
[346783485,1735285845147,-778.58,0.00010482,2]
[346783487,1735285845156,-1264.39,0.00010482,2]
[346783489,1735285845166,-500.0,0.00010482,2]
[346783491,1735285845175,-959.8,0.00010482,2]
[346783493,1735285845187,-809.83,0.00010482,2]
[346783495,1735285845197,-500.0,0.00010482,2]
[346783497,1735285845206,-500.0,0.00010483,2]
[346783499,1735285845215,-500.0,0.00010483,2]
[346783501,1735285845226,-616.44,0.00010483,2]
[346783503,1735285845235,-500.0,0.00010483,2]
[346783505,1735285845245,-500.0,0.00010483,2]
[346783507,1735285845255,-500.0,0.00010483,2]
[346783509,1735285845264,-500.0,0.00010483,2]
[346783511,1735285845274,-500.0,0.00010483,2]
[346783513,1735285845283,-356.45,0.00010483,2]
[346783515,1735285845294,-500.0,0.00010483,2]
[346783517,1735285845303,-500.0,0.00010483,2]
[346783520,1735285845313,-839.78,0.00010483,2]
[346783522,1735285845323,-500.0,0.00010483,2]
[346783524,1735285845332,-500.0,0.00010483,2]
[346783526,1735285845341,-1425.62,0.00010483,2]
[346783528,1735285845351,-500.0,0.00010483,2]
[346783530,1735285845360,-503.36,0.00010483,2]
[346783531,1735285845369,-18995.75,0.00010483,2]
[346783533,1735285845378,-692.24,0.00010483,2]
[346783535,1735285845387,-856.83,0.00010483,2]
[346783537,1735285845397,-500.0,0.00010483,2]
[346783539,1735285845406,-500.0,0.00010483,2]
[346783541,1735285845415,-852.98,0.00010483,2]
[346783543,1735285845424,-823.64,0.00010483,2]
[346783545,1735285845434,-500.0,0.00010483,2]
[346783547,1735285845443,-500.0,0.00010483,2]
[346783549,1735285845452,-947.06,0.00010483,2]
[346783551,1735285845461,-500.0,0.00010483,2]
[346783553,1735285845471,-1250.89,0.00010483,2]
[346783555,1735285845481,-500.0,0.00010483,2]
[346783557,1735285845491,-660.37,0.00010483,2]
[346783559,1735285845500,-500.0,0.00010484,2]
[346783561,1735285845509,-500.0,0.00010484,2]
[346783563,1735285845519,-500.0,0.00010484,2]
[346783565,1735285845528,-500.0,0.00010484,2]
[346783567,1735285845537,-500.0,0.00010484,2]
[346783569,1735285845546,-500.0,0.00010484,2]
[346783571,1735285845556,-500.0,0.00010484,2]
[346783573,1735285845565,-500.0,0.00010484,2]
[346783575,1735285845574,-194.11929276,0.00010484,2]
[346783577,1735285845583,-500.0,0.00010484,2]
[346783579,1735285845592,-500.0,0.00010484,2]
[346783581,1735285845602,-557.73,0.00010484,2]
[346783583,1735285845612,-500.0,0.00010484,2]
[346783585,1735285845621,-500.0,0.00010484,2]
[346783587,1735285845631,-528.85,0.00010484,2]
[346783589,1735285845640,-500.0,0.00010484,2]
[346783591,1735285845649,-500.0,0.00010484,2]
[346783593,1735285845659,-500.0,0.00010484,2]
[346783595,1735285845668,-560.5926807,0.00010484,2]
[346783597,1735285845677,-500.0,0.00010484,2]
[346783600,1735285845688,-500.0,0.00010484,2]
[346783602,1735285845698,-500.0,0.00010484,2]
[346783604,1735285845710,-500.0,0.00010484,2]
[346783606,1735285845720,-500.0,0.00010484,2]
[346783608,1735285845730,-500.0,0.00010484,2]
[346783610,1735285845742,-500.0,0.00010484,2]
[346783617,1735285845842,-563.40559042,0.00010484,2]
[346783618,1735285845852,-500.0,0.00010484,2]
[346783619,1735285845862,-500.0,0.00010484,2]
[346783620,1735285845870,-662.6,0.00010484,2]
[346783621,1735285845880,-307.4983754,0.00010484,2]
[346783637,1735285846061,-192.5016246,0.00010484,2]
[346783639,1735285846071,-503.61521085,0.00010484,2]
[346783641,1735285846080,-500.0,0.00010484,2]
[346783643,1735285846090,-500.0,0.00010484,2]
[346783645,1735285846099,-549.13,0.00010484,2]
[346783647,1735285846109,-500.0,0.00010484,2]
[346783649,1735285846118,-500.0,0.00010484,2]
[346783651,1735285846128,-500.0,0.00010484,2]
[346783653,1735285846137,-611.96981022,0.00010485,2]
[346783655,1735285846146,-177.27845582,0.00010485,2]
[346783657,1735285846155,-220.32951505,0.00010485,2]
[346783732,1735285846900,-279.67048495,0.00010485,2]
[346783734,1735285846909,-500.0,0.00010485,2]
[346783736,1735285846919,-151.40745222,0.00010485,2]
[346783738,1735285846928,-504.74764124,0.00010485,2]
[346783740,1735285846940,-684.8,0.00010486,2]
[346783742,1735285846949,-450.77885653,0.00010486,2]
[346783746,1735285846970,-1197.64114347,0.00010486,2]
[346783748,1735285846979,-500.0,0.00010486,2]
[346783750,1735285846988,-37.17032826,0.00010486,2]
[346783795,1735285847398,-259.0,9.294e-05,2]
[346783833,1735285847757,-241.7160745,9.294e-05,2]
[346783835,1735285847766,-500.0,9.386e-05,2]
[346783837,1735285847775,-383.4902685,9.386e-05,2]
[346783871,1735285848089,-116.5097315,9.386e-05,2]
[346783873,1735285848099,-379.06315914,9.386e-05,2]
[346783875,1735285848108,-159.87272899,9.386e-05,2]
[346783877,1735285848117,-500.0,9.386e-05,2]
[346783879,1735285848126,-500.0,9.386e-05,2]
[346783881,1735285848136,-500.0,9.386e-05,2]
[346783883,1735285848144,-500.0,9.386e-05,2]
[346783884,1735285848154,-500.0,9.386e-05,2]
[346783886,1735285848164,-500.0,9.386e-05,2]
[346783888,1735285848173,-527.48,9.387e-05,2]
[346783891,1735285848184,-501.59461399,9.388e-05,2]
[346783892,1735285848194,-502.69662793,9.388e-05,2]
[346783894,1735285848205,-500.0,9.388e-05,2]
[346783896,1735285848215,-171.70310959,9.66e-05,2]
[346783898,1735285848226,-462.82967174,0.00010486,2]
[346783900,1735285848236,-500.0,0.00010486,2]
[346783902,1735285848246,-659.87,0.00010486,2]
[346783904,1735285848255,-500.0,0.00010486,2]
[346783906,1735285848265,-500.0,0.00010486,2]
[346783908,1735285848275,-500.0,0.00010486,2]
[346783910,1735285848285,-500.0,0.00010486,2]
[346783912,1735285848295,-500.0,0.00010487,2]
[346783914,1735285848304,-5080.82,0.00010487,2]
[346783917,1735285848314,-554.83,0.00010487,2]
[346783918,1735285848326,-500.0,0.00010488,2]
[346783921,1735285848336,-13.69035712,0.00010488,2]
[346783923,1735285848348,-486.30964288,0.00010488,2]
[346783925,1735285848357,-464.44694996,0.00010488,2]
[346783926,1735285848369,-6299.57305004,0.00010488,2]
[346783927,1735285848380,-1626.09574543,0.00010535,2]
[346783928,1735285848390,-389.66592403,0.00010756,2]
[346783929,1735285848400,-500.0,0.00010756,2]
[346783930,1735285848410,-283.16970756,0.00010756,2]
[346783931,1735285848420,-61.62385486,0.00010756,2]
[346784444,1735285854083,902.31832,0.00023,120]
[346784575,1735286102750,24900.0,8.388e-05,2]
[346784577,1735286151064,1919.6107426,8.388e-05,2]
[346784578,1735286409943,241.7160745,8.928e-05,2]
[346784579,1735286431490,160.0,0.0002072,120]
[346784580,1735286491340,160.0,0.00020005,120]
[346784581,1735286551296,160.0,0.00021697,120]
[346784582,1735286611389,160.0,0.00020562,120]
[346784583,1735286619467,5523.0,0.00020445,90]
[346784584,1735286671295,160.0,0.00020759,120]
[346784585,1735286676032,500.0,0.00020445,120]
[346784586,1735286732141,160.0,0.00021042,120]
[346784589,1735286848817,629.27369886,8.903e-05,2]
[346784591,1735286864222,155.87684334,8.894e-05,2]
[346784592,1735286893757,245.0,8.894e-05,2]
[346784593,1735286925671,-994.60459236,8.984e-05,2]
[346784594,1735286925755,-832.13704468,8.984e-05,2]
[346784595,1735286925779,-418.10542391,8.984e-05,2]
[346784596,1735286925805,-222.17588086,8.993e-05,2]
[346784597,1735286950388,-407.097818,8.993e-05,2]
[346784598,1735286950415,-500.0,9.363e-05,2]
[346784599,1735286950442,-500.0,9.363e-05,2]
[346784600,1735286950467,-114.66099028,9.363e-05,2]
[346784601,1735286950497,-385.33900972,9.363e-05,2]
[346784602,1735286950527,-300.0,9.383e-05,2]
[346784603,1735286950553,-300.0,9.383e-05,2]
[346784604,1735286950580,-116.32216741,9.384e-05,2]
[346784605,1735286970172,-980.58570571,9.29e-05,2]
[346784606,1735286975402,-312.06468909,9.29e-05,2]
[346784607,1735286975428,-1262.1625189,9.384e-05,2]
[346784608,1735286975464,-1141.7174811,9.384e-05,2]
[346784609,1735286975489,-138.78531091,9.384e-05,2]
[346785127,1735287000477,-884.71,9.384e-05,2]
[346785129,1735287000503,-500.0,9.384e-05,2]
[346785131,1735287000528,-246.61180799,9.384e-05,2]
[346785133,1735287000561,-253.38819201,9.384e-05,2]
[346785135,1735287000586,-500.0,9.384e-05,2]
[346785138,1735287000612,-41.09632527,9.384e-05,2]
[346785187,1735287001931,24900.0,8.432e-05,2]
[346785612,1735287036275,-253.16365008,9.383e-05,2]
[346785615,1735287036389,-46.83634992,9.383e-05,2]
[346785616,1735287036399,-300.0,9.383e-05,2]
[346785617,1735287036410,-458.90367473,9.384e-05,2]
[346785618,1735287036419,-988.44093094,9.384e-05,2]
[346785619,1735287036431,-4654.50906906,9.384e-05,2]
[346785620,1735287036441,-500.0,9.384e-05,2]
[346785621,1735287036450,-1986.78,9.384e-05,2]
[346785622,1735287036459,-500.0,9.384e-05,2]
[346785623,1735287036469,-602.22,9.384e-05,2]
[346785624,1735287036479,-500.0,9.384e-05,2]
[346785625,1735287036488,-500.0,9.384e-05,2]
[346785626,1735287036499,-2303.72,9.384e-05,2]
[346785627,1735287036508,-1363.08,9.384e-05,2]
[346785628,1735287036518,-700.65,9.384e-05,2]
[346785629,1735287036527,-847.85,9.384e-05,2]
[346785630,1735287036536,-1080.45,9.384e-05,2]
[346785631,1735287036546,-710.56,9.384e-05,2]
[346785632,1735287036555,-500.0,9.384e-05,2]
[346785633,1735287036564,-500.0,9.384e-05,2]
[346785634,1735287036575,-500.0,9.385e-05,2]
[346785635,1735287036585,-500.0,9.385e-05,2]
[346785636,1735287036594,-594.53611002,9.385e-05,2]
[346785637,1735287036603,-219.84553066,9.385e-05,2]
[346785638,1735287036615,-500.0,9.385e-05,2]
[346785639,1735287036625,-500.0,9.385e-05,2]
[346785640,1735287036634,-574.29906948,9.385e-05,2]
[346785641,1735287036644,-500.0,9.385e-05,2]
[346785642,1735287036653,-500.0,9.385e-05,2]
[346785643,1735287036663,-466.06006947,9.385e-05,2]
[346785644,1735287036672,-500.0,9.385e-05,2]
[346785645,1735287036681,-500.0,9.385e-05,2]
[346785646,1735287036690,-500.0,9.385e-05,2]
[346785647,1735287036700,-500.0,9.385e-05,2]
[346785648,1735287036709,-500.0,9.385e-05,2]
[346785649,1735287036719,-500.0,9.385e-05,2]
[346785650,1735287036728,-500.0,9.385e-05,2]
[346785651,1735287036738,-500.0,9.385e-05,2]
[346785652,1735287036747,-508.85,9.385e-05,2]
[346785653,1735287036757,-500.0,9.385e-05,2]
[346785654,1735287036766,-500.0,9.385e-05,2]
[346785655,1735287036776,-500.0,9.385e-05,2]
[346785656,1735287036785,-500.0,9.385e-05,2]
[346785657,1735287036795,-500.0,9.385e-05,2]
[346785658,1735287036804,-509.5,9.385e-05,2]
[346785659,1735287036814,-500.0,9.385e-05,2]
[346785660,1735287036825,-500.0,9.385e-05,2]
[346785661,1735287036835,-500.0,9.385e-05,2]
[346785662,1735287036843,-500.0,9.385e-05,2]
[346785663,1735287036853,-500.0,9.385e-05,2]
[346785664,1735287036862,-500.0,9.385e-05,2]
[346785665,1735287036872,-500.0,9.385e-05,2]
[346785666,1735287036881,-502.10794084,9.385e-05,2]
[346785667,1735287036891,-500.0,9.385e-05,2]
[346785668,1735287036900,-500.0,9.385e-05,2]
[346785669,1735287036910,-502.52140937,9.385e-05,2]
[346785670,1735287036919,-570.39,9.385e-05,2]
[346785671,1735287036930,-527.66,9.385e-05,2]
[346785672,1735287036939,-500.0,9.385e-05,2]
[346785673,1735287036949,-500.0,9.385e-05,2]
[346785674,1735287036959,-500.0,9.385e-05,2]
[346785675,1735287036968,-500.0,9.385e-05,2]
[346785676,1735287036978,-501.32372438,9.385e-05,2]
[346785677,1735287036988,-500.0,9.385e-05,2]
[346785678,1735287036998,-500.0,9.385e-05,2]
[346785679,1735287037007,-639.67,9.385e-05,2]
[346785680,1735287037017,-501.23192038,9.385e-05,2]
[346785681,1735287037026,-500.0,9.385e-05,2]
[346785682,1735287037035,-500.0,9.385e-05,2]
[346785683,1735287037045,-500.0,9.385e-05,2]
[346785684,1735287037055,-500.0,9.385e-05,2]
[346785685,1735287037064,-500.0,9.385e-05,2]
[346785686,1735287037075,-1260.09,9.385e-05,2]
[346785687,1735287037084,-500.0,9.385e-05,2]
[346785688,1735287037094,-500.0,9.385e-05,2]
[346785689,1735287037103,-502.02754045,9.385e-05,2]
[346785690,1735287037112,-501.66638736,9.385e-05,2]
[346785691,1735287037121,-500.0,9.385e-05,2]
[346785692,1735287037131,-500.0,9.385e-05,2]
[346785693,1735287037140,-500.0,9.385e-05,2]
[346785694,1735287037149,-500.0,9.385e-05,2]
[346785695,1735287037158,-500.0,9.385e-05,2]
[346785696,1735287037168,-500.0,9.385e-05,2]
[346785697,1735287037177,-500.0,9.385e-05,2]
[346785698,1735287037188,-500.0,9.385e-05,2]
[346785699,1735287037198,-500.0,9.385e-05,2]
[346785700,1735287037207,-500.0,9.385e-05,2]
[346785701,1735287037217,-500.0,9.385e-05,2]
[346785702,1735287037226,-598.98,9.385e-05,2]
[346785703,1735287037237,-745.27,9.385e-05,2]
[346785704,1735287037246,-1017.38231779,9.385e-05,2]
[346785741,1735287038471,-799.8603524,9.385e-05,2]
[346785743,1735287038483,-1078.107955,9.385e-05,2]
[346785745,1735287038495,-676.2499995,9.385e-05,2]
[346785754,1735287038578,-13355.16937531,9.385e-05,2]
[346785756,1735287038588,-500.0,9.385e-05,2]
[346785758,1735287038598,-500.0,9.385e-05,2]
[346785760,1735287038607,-500.0,9.385e-05,2]
[346785762,1735287038616,-734.5,9.385e-05,2]
[346785764,1735287038626,-500.0,9.385e-05,2]
[346785766,1735287038636,-699.81,9.385e-05,2]
[346785767,1735287038645,-500.0,9.385e-05,2]
[346785769,1735287038655,-500.0,9.385e-05,2]
[346785771,1735287038664,-500.0,9.385e-05,2]
[346785773,1735287038673,-500.0,9.385e-05,2]
[346785775,1735287038683,-500.0,9.385e-05,2]
[346785777,1735287038692,-502.09598806,9.385e-05,2]
[346785779,1735287038702,-216.5703906,9.385e-05,2]
[346785781,1735287038712,-502.61595608,9.385e-05,2]
[346785783,1735287038721,-500.0,9.385e-05,2]
[346785786,1735287038730,-500.0,9.385e-05,2]
[346785789,1735287038740,-500.0,9.385e-05,2]
[346785792,1735287038749,-500.0,9.385e-05,2]
[346785795,1735287038759,-500.0,9.385e-05,2]
[346785797,1735287038768,-500.0,9.385e-05,2]
[346785799,1735287038778,-500.0,9.385e-05,2]
[346785801,1735287038787,-500.0,9.385e-05,2]
[346785803,1735287038797,-504.84265271,9.385e-05,2]
[346785805,1735287038806,-500.0,9.385e-05,2]
[346785807,1735287038815,-500.0,9.385e-05,2]
[346785809,1735287038824,-500.0,9.385e-05,2]
[346785811,1735287038834,-284.32071192,9.385e-05,2]
[346785813,1735287038843,-500.0,9.385e-05,2]
[346785815,1735287038853,-233.29200516,9.385e-05,2]
[346785817,1735287038862,-500.0,9.385e-05,2]
[346785819,1735287038871,-500.0,9.385e-05,2]
[346785821,1735287038881,-660.12366427,9.385e-05,2]
[346785823,1735287038893,-135.35633573,9.385e-05,2]
[346785825,1735287038903,-500.0,9.385e-05,2]
[346785827,1735287038913,-1074.52,9.385e-05,2]
[346785829,1735287038922,-500.0,9.385e-05,2]
[346785831,1735287038931,-500.0,9.385e-05,2]
[346785833,1735287038940,-500.0,9.385e-05,2]
[346785835,1735287038950,-500.0,9.386e-05,2]
[346785837,1735287038959,-500.0,9.386e-05,2]
[346785839,1735287038968,-500.0,9.386e-05,2]
[346785841,1735287038978,-500.0,9.386e-05,2]
[346785843,1735287038987,-500.0,9.386e-05,2]
[346785845,1735287038996,-500.0,9.386e-05,2]
[346785847,1735287039006,-500.0,9.386e-05,2]
[346785849,1735287039015,-500.0,9.386e-05,2]
[346785850,1735287039024,-500.0,9.386e-05,2]
[346785852,1735287039034,-501.10049168,9.386e-05,2]
[346785855,1735287039045,-215.02430556,9.386e-05,2]
[346785856,1735287039054,-500.0,9.386e-05,2]
[346785858,1735287039063,-500.0,9.386e-05,2]
[346785860,1735287039073,-500.0,9.386e-05,2]
[346785862,1735287039086,-500.0,9.386e-05,2]
[346785864,1735287039095,-500.0,9.386e-05,2]
[346785867,1735287039112,-500.0,9.386e-05,2]
[346785869,1735287039124,-500.0,9.386e-05,2]
[346785871,1735287039134,-500.0,9.386e-05,2]
[346785873,1735287039143,-500.0,9.386e-05,2]
[346785876,1735287039154,-500.0,9.386e-05,2]
[346785878,1735287039163,-490.0,9.386e-05,2]
[346785879,1735287039173,-500.0,9.386e-05,2]
[346785881,1735287039183,-500.0,9.386e-05,2]
[346785896,1735287039328,-500.0,9.386e-05,2]
[346785898,1735287039338,-500.0,9.386e-05,2]
[346785900,1735287039348,-500.0,9.386e-05,2]
[346785902,1735287039357,-500.0,9.386e-05,2]
[346785904,1735287039367,-500.0,9.386e-05,2]
[346785906,1735287039376,-500.0,9.386e-05,2]
[346785908,1735287039386,-500.0,9.386e-05,2]
[346785910,1735287039395,-500.0,9.386e-05,2]
[346785912,1735287039405,-500.0,9.386e-05,2]
[346785914,1735287039415,-500.0,9.386e-05,2]
[346785916,1735287039425,-500.0,9.386e-05,2]
[346785918,1735287039434,-500.0,9.386e-05,2]
[346785920,1735287039443,-500.0,9.386e-05,2]
[346785922,1735287039452,-500.0,9.386e-05,2]
[346785923,1735287039461,-500.0,9.386e-05,2]
[346785925,1735287039470,-500.0,9.386e-05,2]
[346785927,1735287039480,-500.0,9.386e-05,2]
[346785929,1735287039488,-500.0,9.386e-05,2]
[346785931,1735287039497,-500.0,9.386e-05,2]
[346785933,1735287039507,-500.0,9.386e-05,2]
[346785935,1735287039516,-500.0,9.386e-05,2]
[346785937,1735287039525,-500.0,9.386e-05,2]
[346785939,1735287039534,-500.0,9.386e-05,2]
[346785941,1735287039544,-500.0,9.386e-05,2]
[346785943,1735287039553,-500.0,9.386e-05,2]
[346785945,1735287039562,-505.18428617,9.386e-05,2]
[346785947,1735287039572,-500.0,9.386e-05,2]
[346785949,1735287039586,-500.0,9.386e-05,2]
[346785951,1735287039596,-500.0,9.386e-05,2]
[346785953,1735287039605,-500.0,9.386e-05,2]
[346785955,1735287039615,-500.0,9.386e-05,2]
[346785957,1735287039623,-503.87492041,9.386e-05,2]
[346785959,1735287039633,-500.0,9.386e-05,2]
[346785960,1735287039643,-500.0,9.386e-05,2]
[346785962,1735287039652,-500.0,9.386e-05,2]
[346785964,1735287039661,-504.77009887,9.386e-05,2]
[346785966,1735287039670,-506.72710269,9.386e-05,2]
[346785968,1735287039679,-500.0,9.386e-05,2]
[346785970,1735287039688,-576.81288278,9.386e-05,2]
[346785972,1735287039697,-500.89039478,9.386e-05,2]
[346785974,1735287039707,-500.0,9.386e-05,2]
[346785976,1735287039717,-500.63135703,9.386e-05,2]
[346785978,1735287039726,-500.0,9.386e-05,2]
[346785980,1735287039735,-500.0,9.386e-05,2]
[346785982,1735287039744,-500.0,9.386e-05,2]
[346785984,1735287039753,-500.0,9.386e-05,2]
[346785986,1735287039763,-500.0,9.386e-05,2]
[346785988,1735287039772,-415.55018543,9.386e-05,2]
[346785990,1735287039781,-500.0,9.386e-05,2]
[346785992,1735287039790,-500.0,9.386e-05,2]
[346785993,1735287039799,-503.96971554,9.386e-05,2]
[346785995,1735287039808,-500.0,9.386e-05,2]
[346785997,1735287039817,-500.0,9.386e-05,2]
[346785999,1735287039831,-500.0,9.386e-05,2]
[346786001,1735287039840,-500.0,9.386e-05,2]
[346786003,1735287039849,-500.0,9.386e-05,2]
[346786005,1735287039859,-500.0,9.386e-05,2]
[346786007,1735287039868,-500.0,9.386e-05,2]